Cogmind - Beta 15 *** ADVENTURER MODE // 2025.07.05 @ 14:45:19 Player: orion Result: Destroyed by D-53 Grenadier with Mini Grenade Launcher Performance ------------- Evolutions (0) 0 Regions Visited (2) 400 Robots Destroyed (10) 50 Value Destroyed (307) 307 Prototype IDs (0) 0 Alien Tech Used (0) 0 Bonus (0) 0 TOTAL SCORE: 757 Bonus ------- None Cogmind --------- Core Integrity 0/250 Matter 300/300 Energy 250/250 System Corruption 0% Temperature Cool (0) Movement Core (100) Ox1 Location -10/Mines Parts ------- > --- POWER (1) -------- (None) > --- PROPULSION (2) --- (None) > --- UTILITY (2) ------ Medium Battery > --- WEAPON (2) ------- Light Assault Rifle Light Assault Rifle > --- INVENTORY (5) ---- Aluminum Leg Aluminum Leg Light Assault Rifle Mining Laser Mining Laser Peak State ------------ > --- POWER ------------ Light Ion Engine > --- PROPULSION ------- Wheel Wheel > --- UTILITY ---------- Medium Battery > --- WEAPON ----------- Assault Rifle Mining Laser > --- INVENTORY -------- Aluminum Leg Aluminum Leg Light Assault Rifle Mining Laser Mining Laser [Rating: 6] Favorites ----------- Power Light Ion Engine Engine Light Ion Engine Propulsion Wheel Wheel Wheel Utility Medium Battery Storage Medium Battery Weapon Light Assault Rifle Energy Gun Medium Laser Ballistic Gun Light Assault Rifle Special Weapon Mining Laser Build | -11 -10 -10 ------- Run | Yrd Mat Min Slots Evolved . | . . . Power . | . . . Propulsion . | . . . Utility . | . . . Weapon . | . . . Parts Attached 11 | 5 2 4 Power 3 | 1 . 2 Engine 3 | 1 . 2 Core . | . . . Reactor . | . . . Propulsion 2 | 2 . . Treads . | . . . Leg . | . . . Wheel 2 | 2 . . Hover . | . . . Flight . | . . . Utility 1 | . 1 . Device . | . . . Storage 1 | . 1 . Processor . | . . . Hackware . | . . . Protection . | . . . Artifact . | . . . Weapon 5 | 2 1 2 Energy Gun 1 | 1 . . Energy Cannon . | . . . Ballistic Gun 3 | 1 . 2 Ballistic Cannon . | . . . Launcher . | . . . Special Weapon 1 | . 1 . Impact Weapon . | . . . Slashing Weapon . | . . . Piercing Weapon . | . . . Special Melee Weapon . | . . . Unidentified Prototypes . | . . . Parts Lost 6 | . 3 3 Power 2 | . . 2 Propulsion 2 | . 2 . Utility . | . . . Weapon 2 | . 1 1 Highest Loss Streak 3 | . 3 2 To Critical Strikes . | . . . Average Backups 4 | 2 4 4 Power . | . . . Propulsion 2 | 1 2 2 Utility . | . . . Weapon 2 | 1 2 2 Tool/Special . | . . . Unused Backups 6 | . 1 5 Power . | . . . Propulsion 3 | . 1 2 Utility . | . . . Weapon 3 | . . 3 Tool/Special . | . . . Average Slot Usage (%) 52 | . 65 40 Engine 8 | . 14 3 Wheel 10 | . 20 . Storage 9 | . 4 14 Energy Gun 3 | . 6 . Ballistic Gun 18 | . 14 22 Special Weapon 2 | . 4 . Peak Build Rating 6 | 5 6 4 Average Rating 3 | 3 4 2 On Entrance 2 | . 5 3 Naked Turns . | . . . Heaviest Build 8 | 7 8 6 Greatest Support 20 | 20 20 3 Greatest Overweight (x) 2 | . 2 1 Average Overweight (x) . | . . . Largest Inventory Capacity 5 | 5 5 5 Average Capacity 5 | 5 5 5 Most Carried 5 | 5 5 5 Average Carried 4 | 2 4 4 Final Capacity 5 | 5 5 5 Final Carried 5 | 3 5 5 Class Distribution -------------------- 100% | Mutant Dominant Class ---------------- Mutant | -10/Materials Mutant | -10/Mines Resources | -11 -10 -10 ----------- Run | Yrd Mat Min Matter Collected 411 | 256 89 66 Remotely . | . . . Salvage Created 310 | 31 162 117 Parts 20 | 4 5 11 Haulers Intercepted . | . . . Recyclers Shooed 1 | . . 1 Parts Field Recycled . | . . . Retrieved Matter . | . . . Parts Self-Destructed . | . . . Prevented . | . . . Kills | -11 -10 -10 ------- Run | Yrd Mat Min Combat Hostiles Destroyed 10 | 1 4 5 Guns 10 | 1 4 5 Classes Destroyed 2 | 1 . 1 Swarmer 3 | . . 3 Grunt 7 | 1 4 2 Best Kill Streak 3 | 1 2 3 Combat Bots Only 3 | 1 2 3 Max Kills in Single Turn 1 | 1 1 1 Gunslinging . | . . . Exploded . | . . . Melee . | . . . Uniques/NPCs Destroyed . | . . . Combat | -11 -10 -10 -------- Run | Yrd Mat Min Hostile Shots Fired 80 | 4 39 37 Missed 18 | 1 7 10 Hits 62 | 3 32 27 Projectile 62 | 3 32 27 AOE 5 | . . 5 Critical Strikes 1 | . 1 . Damage Taken 706 | 24 347 335 Core 274 | 16 93 165 Absorbed by Shields . | . . . Ignored by Resistances 208 | 7 101 100 Core Remaining (%) 93 | 93 . . Volleys Fired 56 | 2 28 26 Largest 2 | 2 2 2 Hottest 70 | 70 70 40 Shots Fired 75 | 4 36 35 Gun 75 | 4 36 35 Cannon . | . . . Launcher . | . . . Special . | . . . Kinetic 65 | 2 28 35 Thermal 10 | 2 8 . Explosive . | . . . Electromagnetic . | . . . Robot Hit Streak 14 | 2 9 14 Robot Miss Streak 1 | 1 1 1 Penetration Max . | . . . Secondary Targets 2 | . . 2 Max Gunslinging Chain 1 | . . 1 Shots Hit Robots 59 | 2 26 31 Core Hits 22 | 2 10 10 Critical Kills . | . . . Critical Parts Destroyed . | . . . Critical Strikes 1 | . 1 . Burn 1 | . 1 . Melee Attacks . | . . . Impact . | . . . Slashing . | . . . Piercing . | . . . Sneak Attacks . | . . . Combat Hostiles . | . . . Follow-up Attacks . | . . . Damage Inflicted 622 | 40 319 263 Guns 622 | 40 319 263 Cannons . | . . . Explosions . | . . . Melee . | . . . Ramming . | . . . Kinetic 558 | 27 268 263 Thermal 64 | 13 51 . Explosive . | . . . Electromagnetic . | . . . Impact . | . . . Slashing . | . . . Piercing . | . . . Highest Corruption . | . . . Average Corruption . | . . . Corruption Purged . | . . . Corruption Blocked . | . . . Overload Shots . | . . . Overflow Damage . | . . . Projectiles . | . . . Explosions . | . . . Melee . | . . . Knockbacks . | . . . Impact . | . . . Kinetic . | . . . Secondary . | . . . Self-Inflicted Damage . | . . . Shots . | . . . Rammed . | . . . Targets Rammed . | . . . Kicked . | . . . Crushed . | . . . Highest Temperature 89 | 30 89 4 Average Temperature 26 | 17 33 1 Received Heat Transfer 411 | 18 282 111 Siege Activations . | . . . Martial Activations . | . . . Shielding Activations . | . . . Robots Disrupted . | . . . Combat Hostiles . | . . . Robots Corrupted . | . . . Combat Hostiles . | . . . Parts Fried . | . . . Impact Corruptions . | . . . Robots Melted . | . . . Combat Hostiles . | . . . Parts Melted 2 | . 2 . Heat Transferred 259 | 37 222 . Parts Sabotaged . | . . . Parts Stolen . | . . . Parts Stripped . | . . . Power Chain Reactions . | . . . Alert | -11 -10 -10 ------- Run | Yrd Mat Min Maximum Alert Level . | . . . Low Security (%) 100 | 100 100 100 Level 1 . | . . . Level 2 . | . . . Level 3 . | . . . Level 4 . | . . . Level 5 . | . . . High Security . | . . . Max Security . | . . . Peak Influence 60 | 20 50 60 Initial 11 | . 11 9 Average 19 | 3 16 26 Influence Increases 256 | 20 116 120 Destroy 0b10 Robot/C 200 | 20 80 100 Destroy Leader 40 | . 20 20 Destroy Structure 1 | . 1 . Lose Combat Pursuer 15 | . 15 . Influence Decreases 256 | . 106 150 Entered New Map 30 | . 9 21 Time Decay 177 | . 77 100 Lost Part 49 | . 20 29 Squads Dispatched . | . . . Investigation . | . . . Extermination . | . . . Reinforcement . | . . . Assault . | . . . Garrison . | . . . Intercept . | . . . Searches Triggered . | . . . Construction Impeded . | . . . Haulers Reinforced . | . . . Active Scanning Responses . | . . . Cargo Convoy Interrupts . | . . . Stealth | -11 -10 -10 --------- Run | Yrd Mat Min Distress Signals . | . . . Communications Jammed . | . . . Distress Signals . | . . . Times Spotted 14 | 1 6 7 Peak Tracking Total 4 | 1 4 3 Tactical Retreats 1 | . 1 . Traps | -11 -10 -10 ------- Run | Yrd Mat Min Traps Triggered . | . . . Indirectly . | . . . Trap Hack Attempts . | . . . Triggered . | . . . Disarmed . | . . . Reprogrammed . | . . . Reused . | . . . Traps Extracted . | . . . Installed . | . . . Triggered . | . . . Machines | -11 -10 -10 ---------- Run | Yrd Mat Min Machines Disabled . | . . . Max in Single Turn . | . . . Machines Repaired . | . . . Machines Dismantled . | . . . Machines Sabotaged . | . . . Overloaded Fab Kills . | . . . Hacking | -11 -10 -10 --------- Run | Yrd Mat Min Machines Accessed . | . . . Terminals . | . . . Fabricators . | . . . Repair Stations . | . . . Recycling Units . | . . . Scanalyzers . | . . . Garrison Access . | . . . Total Hacks . | . . . Successful . | . . . Failed . | . . . Catastrophic . | . . . Database Lockouts . | . . . Manual . | . . . Terminals . | . . . Fabricators . | . . . Repair Stations . | . . . Recycling Units . | . . . Scanalyzers . | . . . Garrison Access . | . . . Terminal Hacks . | . . . Fabricator Hacks . | . . . Repair Station Hacks . | . . . Recycling Unit Hacks . | . . . Scanalyzer . | . . . Garrison Access Hacks . | . . . Unauthorized Hacks . | . . . Terminals . | . . . Fabricators . | . . . Repair Stations . | . . . Recycling Units . | . . . Scanalyzers . | . . . Garrison Access . | . . . Data Cores Recovered . | . . . Used . | . . . Hacking Detections . | . . . Full Trace Events . | . . . Feedback Events . | . . . Feedback Blocked . | . . . Robot Schematics Acquired . | . . . Robots Built . | . . . Authchips . | . . . Time . | . . . Total Robot Build Rating . | . . . Part Schematics Acquired . | . . . Parts Built . | . . . Authchips . | . . . Time . | . . . Total Part Build Rating . | . . . Parts Repaired . | . . . Time . | . . . Parts Recycled . | . . . Recycled Matter . | . . . Retrieved Matter . | . . . Retrieved Components . | . . . Parts Scanalyzed . | . . . Part Schematics Acquired . | . . . Parts Damaged . | . . . Bothacking | -11 -10 -10 ------------ Run | Yrd Mat Min Used RIF Installer . | . . . Robots Hacked . | . . . Non-combat . | . . . Combat . | . . . Robot Hacks Applied . | . . . Relay Couplers Released . | . . . Fabnet Peak Effective % . | . . . Robots Rewired . | . . . Allies Hacked . | . . . Hacks Repelled . | . . . Allies | -11 -10 -10 -------- Run | Yrd Mat Min Total Allies . | . . . Largest Group . | . . . Highest-Rated Group . | . . . Highest-Rated Ally . | . . . Total Orders . | . . . Ally Attacks . | . . . Total Damage . | . . . Kills . | . . . Allies Corrupted . | . . . Allies Melted . | . . . Intel | -11 -10 -10 ------- Run | Yrd Mat Min Active Infowar (turns) . | . . . Robot Analysis Total . | . . . Derelict Logs Recovered . | . . . Drone Launches . | . . . Drone Recoveries . | . . . Exploration | -11 -10 -10 ------------- Run | Yrd Mat Min Turns Passed 511 | 75 214 222 Spaces Moved 347 | 73 151 123 Core 162 | 17 22 123 Treads . | . . . Legs . | . . . Wheels 185 | 56 129 . Hover . | . . . Flight . | . . . Fastest Speed 50 | 50 80 50 Average Speed 88 | 73 90 95 Slowest Speed 150 | 80 150 100 Overloaded Moves . | . . . Propulsion Burnouts . | . . . Robots Hopped . | . . . Potential Cave-ins . | . . . Cave-ins Triggered . | . . . Exploration Rate (%) 18 | 5 18 33 Regions Visited 2 Branch Regions 1 Pre-discovered Areas . | . . . Known Exits Taken . | . . . Unknown Exits Taken 2 | 1 1 . Scrap Searched . | . . . Spaces Dug . | . . . Terrain Destroyed . | . . . Melee . | . . . Projectile . | . . . AOE . | . . . Terrain Rammed . | . . . Walls Destroyed . | . . . Machines Disabled . | . . . Actions | -11 -10 -10 --------- Run | Yrd Mat Min Total 481 | 90 193 198 Wait 53 | 3 7 43 Move 345 | 72 150 123 Hop . | . . . Pick Up 13 | 8 4 1 Fast Attach 3 | . 1 2 Attach 7 | 5 1 1 Detach . | . . . Swap 1 | . . 1 Drop 3 | . 2 1 Fire 56 | 2 28 26 Melee . | . . . Ram . | . . . Kick . | . . . Crush . | . . . Escape Stasis . | . . . Rewire . | . . . Trap . | . . . Miscellaneous . | . . . Route ------- -11/Scrapyard -10/Materials -10/Mines (discovered 1 exit: [*Mat]) History --------- Turn | Location | Event 2 | -11/Scrapyard | Met Revision 17 51 | -11/Scrapyard | Discovered new exit (range 8) 76 | -11/Scrapyard | Entered Materials 115 | -10/Materials | Discovered new exit (range 6) 273 | -10/Materials | Lost 3 parts (2n1w) 290 | -10/Materials | Entered Mines 295 | -10/Mines | Core integrity fell below 50% 311 | -10/Mines | Build established: Mutant 490 | -10/Mines | Discovered new exit (range 9) 502 | -10/Mines | Assembled infested the area 504 | -10/Mines | Core integrity fell below 20% 512 | -10/Mines | Destroyed by D-53 Grenadier with Mini Grenade Launcher Last Messages --------------- Acquired 5 matter. Dropped Lgt. Ion Engine. Acquired 12 matter. Lgt. Ion Engine destroyed. Acquired Lgt. Assault Rifle. G-34 Mercenary destroyed. G-47 Trooper destroyed. Acquired 35 matter. R-06 Scavenger collects Particle Gun. R-06 Scavenger collects Imp. Heat Sink. R-06 Scavenger collects Ion Engine. K-01 Serf collects debris. EXIT=FOUND ALERT: Infestation in the mines, dispatching Demolisher response squad. C-30 ARC bursts open, deploying its payload. D-53 Grenadier unfolds itself. Plasma Injector explodes. K-01 Serf destroyed. K-01 Serf collects debris. Map ----- +----------------------------------------------------+ | ?????????????????????????????????????######## | | ?????????????????????????????????????# # | | ?????????????????????????????????????# # | | ?????????????????????????????????????# # | | ?????????????????????????????????????# """# | | ?????????????????????????????????????# = """# | | ?????????????????????????????????????#=%*"""# | | ?????????????????????????????????????# # | | ?????????????????????????????????????##=##### | | ??????????????????????????????????????#*#???? | | ??????????????????????????????????????#*#???? | | ??????????????????????????????????????#%#???? | | ??????????????????????????????????????#%#???? | | ??????????????????????????????????????# ##### | | ??????????????????????????????????????# | | ??????????????????????????????????????##### # | | ????????????????????####??????????????????# # | | ???????????????????## ##?????????????????# # | | ??????????????????## #?????????????????# # | | ??????????????????# #?????????????????# # | | ??????????????????# ##???????????????? | | ??????????????????# #####???????????? | | ??????????????????# ##???????????### | | ?????????# ##????## #?????????????? | | ?????????# ### ##????????????? | | ?????????# $ @ #??????????### | | ?????????# ##????###### | | ?????????## ##### #???## ## | | ??????????####??????# ##### | | ????????????????????# ### ### | | ????????????????????## d ## ##?? | | ?????????????????????? d ## ######??? | | ??????????????????????# # ### #???????? | | ??????????????????????? # #???????? | | ???????????????????????##### #???????? | | ??????????????????????????# " ## ##???????? | | ?????????????????????????# <"%"## #????????? | | ????????????????????????# " #????????? | | ????????????????????????# ### #????????? | | ????????????????????????## ##?# #????????? | | ?????????????????????????######??# #????????? | | ?????????????????????????????????# #????????? | | ????????????????????????????????? ?????????? | | ????????????????????????????????? ?????????? | | ????????????????????????????????? ?????????? | | ????????????????????????????????? ?????????? | | ????????????????????????????????? ?????????? | | ?????????????????????????????????? ?????????? | | ?????????????????????????????????? ?????????? | | ????????????????????????????????????????????? | +----------------------------------------------------+ Best States ------------- Heat Dissipation 25 Energy Generation 10 Energy Capacity 275 Matter Stores 300 Matter Capacity 300 Sight Range 16 Terrain Scan Density 10 Resistance: KI 20 Resistance: TH 20 Resistance: EX 20 Resistance: EM 20 Resistance: I 20 Resistance: S 20 Resistance: P 20 Evasion (%) 50 Offensive Hacking 10 Item Schematics ----------------- None Robot Schematics ------------------ None Fabricated ------------ Nothing Repaired ---------- Nothing Alien Tech Used ----------------- None Achievements -------------- None Challenges ------------ None Game ------ Seed MatterAnalysisMatrix Manual? 0 Play Time 00:10:52 Cumulative 2.0 hours Start 2025.07.05 @ 14:36:23 End 2025.07.05 @ 14:45:19 Sessions 3 Manual Loads 0 Difficulty Adventurer Special Mode None Game No. 3 Rogue 0 Adventurer 3 Explorer 0 Win Type - Total 0 Types 0/0/0/0/0/0/0/0/0/0 Lore% 0 Gallery% 3 Achievement% 4 Wizard Run 0 Options --------- Layout 1 ASCII 0 Keyboard 0 Movement Mouse Keybinds 0 Fullscreen 1 Font 18/X11 Map View 50x40 Zoom Use 95% Tactical HUD 0 Map Filters NONE Filters NONE Steam 1 RUN: a8c98361-eafa-47f0-b7ae-d610d0575f7d